fUSD/lending_fUSD_20260412
["ID","MTS","AMOUNT","RATE_DAILY","PERIOD"]
[420333264,1775982634619,-500.0,0.00013735,2]
[420333265,1775982634629,-500.0,0.00013735,2]
[420333266,1775982634640,-150.0,0.00013735,2]
[420333267,1775982634663,-500.0,0.00013735,2]
[420333268,1775982634673,-150.0,0.00013735,2]
[420333269,1775982634683,-150.0,0.00013735,2]
[420333270,1775982634699,-500.0,0.00013735,2]
[420333271,1775982634716,-220.67931489,0.00013735,2]
[420333272,1775982634726,-150.0,0.00013735,2]
[420333273,1775982634737,-346.9686725,0.00013735,2]
[420333274,1775982634754,-150.0,0.00013735,2]
[420333275,1775982634764,-150.0,0.00013735,2]
[420333276,1775982634777,-150.0,0.00013735,2]
[420333277,1775982634804,-263.22293834,0.00013735,2]
[420333278,1775982634815,-150.13595455,0.00013735,2]
[420333279,1775982634824,-500.0,0.00013735,2]
[420333280,1775982634842,-500.0,0.00013735,2]
[420333281,1775982634859,-500.0,0.00013735,2]
[420333282,1775982634871,-500.0,0.00013735,2]
[420333283,1775982634883,-500.0,0.00013735,2]
[420333284,1775982634894,-500.0,0.00013735,2]
[420333285,1775982634908,-500.0,0.00013735,2]
[420333286,1775982634929,-500.0,0.00013735,2]
[420333287,1775982634941,-176.37308167,0.00013735,2]
[420333288,1775982634951,-151.0,0.00013745,2]
[420333289,1775982634968,-151.0,0.000138,2]
[420333290,1775982634982,-1000.0,0.00013828,2]
[420333291,1775982634998,-2500.0,0.00013828,30]
[420333292,1775982635022,-500.0,0.00013828,30]
[420333293,1775982635054,-500.0,0.00013828,2]
[420333294,1775982635065,-1328.27659266,0.00013828,2]
[420333295,1775982635081,-200.0,0.00013828,2]
[420333296,1775982635098,-151.0,0.00013828,2]
[420333297,1775982635107,-670.58624095,0.00013828,2]
[420333298,1775982635117,-500.0,0.00013828,2]
[420333299,1775982635145,-151.0,0.00013828,2]
[420333300,1775982635161,-500.0,0.00013828,2]
[420333301,1775982635178,-151.0,0.00013828,2]
[420333302,1775982635192,-500.0,0.00013828,2]
[420333303,1775982635203,-151.0,0.00013828,2]
[420333304,1775982635215,-500.0,0.00013828,2]
[420333305,1775982635227,-151.0,0.00013828,2]
[420333306,1775982635250,-500.0,0.00013828,2]
[420333307,1775982635262,-151.0,0.00013828,2]
[420333308,1775982635274,-500.0,0.00013828,2]
[420333309,1775982635297,-151.0,0.00013828,2]
[420333310,1775982635309,-500.0,0.00013828,2]
[420333311,1775982635333,-151.0,0.00013828,2]
[420333312,1775982635343,-500.0,0.00013828,2]
[420333313,1775982635353,-151.0,0.00013828,2]
[420333314,1775982635382,-500.0,0.00013828,2]
[420333315,1775982635398,-500.0,0.00013828,2]
[420333316,1775982635414,-151.0,0.00013828,2]
[420333317,1775982635427,-500.0,0.00013828,2]
[420333318,1775982635441,-151.0,0.00013828,2]
[420333319,1775982635462,-500.0,0.00013828,2]
[420333320,1775982635473,-151.0,0.00013828,2]
[420333321,1775982635500,-743.50770149,0.00013828,2]
[420333322,1775982635511,-151.0,0.00013828,2]
[420333323,1775982635529,-500.0,0.00013828,2]
[420333324,1775982635540,-500.0,0.00013828,2]
[420333325,1775982635551,-500.0,0.00013828,2]
[420333326,1775982635566,-500.0,0.00013828,2]
[420333327,1775982635582,-500.0,0.00013828,2]
[420333328,1775982635600,-500.0,0.00013828,2]
[420333329,1775982635612,-500.0,0.00013828,2]
[420333330,1775982635622,-500.0,0.00013828,2]
[420333331,1775982635633,-500.0,0.00013828,2]
[420333332,1775982635651,-500.0,0.00013828,2]
[420333333,1775982635661,-500.0,0.00013828,2]
[420333334,1775982635671,-500.0,0.00013828,2]
[420333335,1775982635686,-500.0,0.00013828,2]
[420333336,1775982635697,-151.0,0.00013855,2]
[420333337,1775982635706,-153.81448557,0.00013881,2]
[420333338,1775982635720,-400.0,0.000139,5]
[420333339,1775982635734,-4773.64473306,0.00013909,2]
[420333340,1775982635749,-2949.3464,0.0001391,2]
[420333341,1775982635762,-165.59,0.00013912,2]
[420333342,1775982635773,-258.74,0.00013941,2]
[420333343,1775982635786,-2596.36175199,0.00013941,2]
[420333344,1775982635800,-288.548138,0.00013945,2]
[420333345,1775982635813,-288.548138,0.00013945,2]
[420333346,1775982635826,-288.548138,0.00013945,2]
[420333347,1775982635854,-288.548138,0.00013945,2]
[420333348,1775982635866,-198.264958,0.00013945,2]
[420333349,1775982635879,-198.264958,0.00013945,2]
[420333350,1775982635895,-198.264958,0.00013945,2]
[420333351,1775982635907,-198.264958,0.00013945,2]
[420333352,1775982635919,-37128.03350364,0.00013945,2]
[420333353,1775982635933,-150.0,0.00013973,2]
[420333354,1775982635957,-150.0,0.00013973,2]
[420333355,1775982635968,-150.0,0.00013973,2]
[420333356,1775982635978,-150.0,0.00013973,2]
[420333357,1775982635999,-500.93469977,0.00013973,2]
[420333358,1775982636010,-500.0,0.00013973,2]
[420333359,1775982636021,-500.0,0.00013973,2]
[420333360,1775982636045,-500.0,0.00013973,2]
[420333361,1775982636071,-458.63773172,0.00013973,2]
[420333362,1775982636107,-500.0,0.00013973,2]
[420333363,1775982636125,-501.07744762,0.00013973,2]
[420333364,1775982636143,-2499.434,0.00014,2]
[420333365,1775982636155,-173.249,0.00014,2]
[420333366,1775982636174,-210.120729,0.00014,2]
[420333367,1775982636199,-500.0,0.00014008,2]
[420333368,1775982636210,-500.0,0.00014008,2]
[420333369,1775982636230,-500.0,0.00014008,2]
[420333370,1775982636242,-573.85665656,0.00014008,2]
[420333371,1775982636253,-500.0,0.00014008,2]
[420333372,1775982636267,-500.0,0.00014008,2]
[420333373,1775982636288,-500.0,0.00014008,2]
[420333374,1775982636315,-500.0,0.00014008,2]
[420333375,1775982636325,-229.80933738,0.00014008,2]
[420333376,1775982636348,-500.0,0.00014008,2]
[420333377,1775982636358,-458.74638839,0.00014008,2]
[420333378,1775982636369,-500.0,0.00014008,2]
[420333379,1775982636391,-500.0,0.00014008,2]
[420333380,1775982636401,-500.0,0.00014008,2]
[420333381,1775982636411,-500.0,0.00014008,2]
[420333382,1775982636432,-500.0,0.00014008,2]
[420333383,1775982636444,-500.0,0.00014008,2]
[420333384,1775982636460,-354.08854204,0.00014008,2]
[420333385,1775982636473,-500.0,0.00014008,2]
[420333386,1775982636485,-500.0,0.00014008,2]
[420333387,1775982636495,-500.0,0.00014008,2]
[420333388,1775982636511,-500.0,0.00014008,2]
[420333389,1775982636524,-500.0,0.00014008,2]
[420333390,1775982636534,-400.32039567,0.00014008,2]
[420333391,1775982636545,-500.0,0.00014008,2]
[420333392,1775982636558,-500.0,0.00014008,2]
[420333393,1775982636571,-500.0,0.00014008,2]
[420333394,1775982636586,-500.0,0.00014008,2]
[420333395,1775982636599,-320.9066873,0.00014008,2]
[420333396,1775982636609,-500.0,0.00014008,2]
[420333397,1775982636630,-500.0,0.00014008,2]
[420333398,1775982636641,-500.0,0.00014008,2]
[420333399,1775982636656,-500.0,0.00014008,2]
[420333400,1775982636667,-500.0,0.00014008,2]
[420333401,1775982636678,-500.0,0.00014008,2]
[420333402,1775982636692,-500.0,0.00014008,2]
[420333403,1775982636709,-500.0,0.00014008,2]
[420333404,1775982636719,-500.0,0.00014008,2]
[420333405,1775982636729,-500.0,0.00014008,2]
[420333406,1775982636741,-400.0,0.00014008,2]
[420333407,1775982636759,-500.0,0.00014008,2]
[420333408,1775982636768,-500.0,0.00014008,2]
[420333409,1775982636782,-500.0,0.00014008,2]
[420333410,1775982636803,-500.0,0.00014009,2]
[420333411,1775982636813,-500.0,0.00014009,2]
[420333412,1775982636837,-514.24972482,0.00014009,2]
[420333413,1775982636847,-500.0,0.00014009,2]
[420333414,1775982636857,-500.0,0.00014009,2]
[420333415,1775982636873,-500.0,0.00014009,2]
[420333416,1775982636884,-151.0,0.00014009,2]
[420333417,1775982636894,-151.0,0.00014009,2]
[420333418,1775982636907,-151.0,0.00014009,2]
[420333419,1775982636924,-176.285447,0.00014009,2]
[420333420,1775982636938,-500.0,0.00014009,2]
[420333421,1775982636951,-500.0,0.00014009,2]
[420333422,1775982636974,-623.55595166,0.00014009,2]
[420333423,1775982636987,-1128.72,0.00014009,2]
[420333424,1775982637005,-1128.72,0.00014009,2]
[420333425,1775982637030,-1128.72,0.00014009,2]
[420333426,1775982637047,-500.0,0.00014009,2]
[420333427,1775982637073,-500.0,0.00014009,2]
[420333428,1775982637102,-500.0,0.00014009,2]
[420333429,1775982637229,-160.019041,0.00014009,2]
[420333431,1775982637260,-160.019041,0.00014009,2]
[420333433,1775982637269,-160.019041,0.00014009,2]
[420333435,1775982637279,-160.019041,0.00014009,2]
[420333436,1775982637303,-353.431536,0.00014009,2]
[420333438,1775982637314,-353.431536,0.00014009,2]
[420333439,1775982637324,-353.431536,0.00014009,2]
[420333440,1775982637333,-353.431536,0.00014009,2]
[420333441,1775982637348,-288.548138,0.00014009,2]
[420333442,1775982637357,-288.548138,0.00014009,2]
[420333443,1775982637367,-288.548138,0.00014009,2]
[420333444,1775982637377,-288.548138,0.00014009,2]
[420333445,1775982637399,-500.0,0.00014009,2]
[420333446,1775982637409,-500.0,0.00014009,2]
[420333447,1775982637419,-262.76841251,0.00014009,2]
[420333448,1775982637432,-500.0,0.00014009,2]
[420333449,1775982637447,-500.0,0.00014009,2]
[420333450,1775982637457,-500.0,0.00014009,2]
[420333451,1775982637467,-198.264958,0.00014009,2]
[420333452,1775982637485,-198.264958,0.00014009,2]
[420333453,1775982637495,-198.264958,0.00014009,2]
[420333454,1775982637505,-198.264958,0.00014009,2]
[420333455,1775982637515,-500.0,0.00014009,2]
[420333456,1775982637535,-500.0,0.00014009,2]
[420333457,1775982637545,-500.0,0.00014009,2]
[420333458,1775982637555,-195.45644241,0.00014009,2]
[420333459,1775982637574,-198.44213685,0.00014009,2]
[420333460,1775982637585,-197.06382949,0.00014009,2]
[420333461,1775982637595,-500.0,0.00014009,2]
[420333462,1775982637607,-500.0,0.00014009,2]
[420333463,1775982637624,-291.14041575,0.00014009,2]
[420333464,1775982637634,-500.0,0.00014009,2]
[420333465,1775982637644,-571.69604474,0.00014009,2]
[420333466,1775982637658,-151.0,0.0001401,2]
[420333467,1775982637674,-151.0,0.0001401,2]
[420333468,1775982637683,-151.0,0.0001401,2]
[420333469,1775982637693,-160.019041,0.0001401,2]
[420333470,1775982637709,-160.019041,0.0001401,2]
[420333471,1775982637724,-160.019041,0.0001401,2]
[420333472,1775982637735,-160.019041,0.0001401,2]
[420333473,1775982637745,-353.431536,0.0001401,2]
[420333474,1775982637762,-353.431536,0.0001401,2]
[420333475,1775982637773,-353.431536,0.0001401,2]
[420333476,1775982637784,-353.431536,0.0001401,2]
[420333477,1775982637794,-288.548138,0.0001401,2]
[420333478,1775982637809,-288.548138,0.0001401,2]
[420333479,1775982637826,-288.548138,0.0001401,2]
[420333480,1775982637836,-288.548138,0.0001401,2]
[420333481,1775982637849,-1898.57304,0.0001401,2]
[420333482,1775982637863,-198.264958,0.0001401,2]
[420333483,1775982637873,-198.264958,0.0001401,2]
[420333484,1775982637885,-198.264958,0.0001401,2]
[420333485,1775982637901,-198.264958,0.0001401,2]
[420333486,1775982637911,-142216.22764002,0.0001401,2]
[420333487,1775982637931,-12102.34448368,0.0001401,2]
[420333488,1775982637945,-32359.53553156,0.0001401,2]
[420333489,1775982637963,-50354.50510464,0.0001401,2]
[420333497,1775982639370,-2890.96426327,0.0001401,2]
[420333498,1775982639387,-2418.07525,0.0001401,2]
[420333499,1775982639403,-2426.4876483,0.0001401,2]
[420333500,1775982639418,-809.73291563,0.0001401,2]
[420333501,1775982639442,-13688.98583388,0.0001401,2]
[420333513,1775982640691,-410.175902,0.0001401,2]
[420333514,1775982640710,-481725.75342702,0.0001401,2]
[420333515,1775982640726,-8711.9051502,0.00014041,2]
[420333516,1775982640737,-3400.1023542,0.00014041,2]
[420333517,1775982640752,-500.0,0.00014042,2]
[420333518,1775982640770,-350.0,0.00014044,2]
[420333519,1775982640787,-5777.4121019,0.00014058,2]
[420333520,1775982640797,-3233.3518582,0.00014062,2]
[420333521,1775982640813,-379.4318658,0.00014062,2]
[420333522,1775982640825,-150.0,0.0001411,2]
[420333523,1775982640834,-31235.8898613,0.00014155,2]
[420333524,1775982640843,-3536.7440708,0.00014155,2]
[420333525,1775982640861,-44614.5945888,0.00014155,2]
[420333526,1775982640870,-151.0,0.00014155,2]
[420333527,1775982640879,-974.066065,0.00014155,2]
[420333528,1775982640888,-974.066065,0.00014155,2]
[420333529,1775982640909,-974.066065,0.00014155,2]
[420333530,1775982640918,-974.066065,0.00014155,2]
[420333531,1775982640928,-974.066065,0.00014155,2]
[420333532,1775982640941,-974.066065,0.00014155,2]
[420333533,1775982640952,-974.066065,0.00014155,2]
[420333534,1775982640961,-974.066065,0.00014155,2]
[420333535,1775982640971,-151.0,0.00014155,2]
[420333536,1775982640985,-151.0,0.00014155,2]
[420333537,1775982640995,-153.30583,0.00014155,2]
[420333538,1775982641004,-151.0,0.00014155,2]
[420333539,1775982641019,-151.0,0.00014155,2]
[420333540,1775982641029,-160.019041,0.00014155,2]
[420333541,1775982641039,-160.019041,0.00014155,2]
[420333542,1775982641048,-160.019041,0.00014155,2]
[420333543,1775982641065,-160.019041,0.00014155,2]
[420333544,1775982641086,-160.019041,0.00014155,2]
[420333545,1775982641096,-160.019041,0.00014155,2]
[420333546,1775982641105,-160.019041,0.00014155,2]
[420333547,1775982641123,-160.019041,0.00014155,2]
[420333548,1775982641132,-353.431536,0.00014155,2]
[420333549,1775982641142,-353.431536,0.00014155,2]
[420333550,1775982641153,-353.431536,0.00014155,2]
[420333551,1775982641176,-353.431536,0.00014155,2]
[420333552,1775982641188,-353.431536,0.00014155,2]
[420333553,1775982641203,-353.431536,0.00014155,2]
[420333554,1775982641222,-353.431536,0.00014155,2]
[420333555,1775982641249,-353.431536,0.00014155,2]
[420333556,1775982641259,-288.548138,0.00014155,2]
[420333557,1775982641279,-288.548138,0.00014155,2]
[420333558,1775982641318,-288.548138,0.00014155,2]
[420333559,1775982641329,-288.548138,0.00014155,2]
[420333560,1775982641354,-288.548138,0.00014155,2]
[420333561,1775982641366,-288.548138,0.00014155,2]
[420333562,1775982641390,-288.548138,0.00014155,2]
[420333563,1775982641403,-288.548141,0.00014155,2]
[420333564,1775982641416,-198.264958,0.00014155,2]
[420333565,1775982641436,-198.264958,0.00014155,2]
[420333566,1775982641467,-198.264958,0.00014155,2]
[420333567,1775982641484,-198.264958,0.00014155,2]
[420333568,1775982641498,-198.264958,0.00014155,2]
[420333569,1775982641507,-198.264958,0.00014155,2]
[420333570,1775982641520,-198.264958,0.00014155,2]
[420333571,1775982641537,-198.264958,0.00014155,2]
[420333572,1775982641549,-658.20176504,0.00014164,2]
[420333573,1775982641558,-1600.0,0.00014171,2]
[420333574,1775982641579,-500.0,0.00014173,2]
[420333575,1775982641592,-500.0,0.00014173,2]
[420333576,1775982641602,-500.0,0.00014173,2]
[420333577,1775982641620,-500.0,0.00014173,2]
[420333578,1775982641630,-501.23209011,0.00014173,2]
[420333579,1775982641642,-500.0,0.00014173,2]
[420333580,1775982641666,-500.15875882,0.00014173,2]
[420333581,1775982641678,-500.0,0.00014173,2]
[420333582,1775982641691,-180.50915092,0.00014173,2]
[420333583,1775982641707,-500.0,0.00014173,2]
[420333584,1775982641720,-500.0,0.00014173,2]
[420333585,1775982641729,-500.0,0.00014173,2]
[420333586,1775982641744,-500.0,0.00014173,2]
[420333587,1775982641763,-500.0,0.00014173,2]
[420333588,1775982641773,-500.0,0.00014173,2]
[420333589,1775982641785,-160.19196751,0.00014173,2]
[420333590,1775982641806,-501.10745246,0.00014173,2]
[420333591,1775982641815,-500.0,0.00014173,2]
[420333592,1775982641826,-500.0,0.00014173,2]
[420333593,1775982641835,-500.0,0.00014173,2]
[420333594,1775982641858,-500.0,0.00014173,2]
[420333595,1775982641875,-500.0,0.00014173,2]
[420333596,1775982641895,-519.22196855,0.00014173,2]
[420333597,1775982641905,-500.0,0.00014173,2]
[420333598,1775982641919,-500.0,0.00014173,2]
[420333599,1775982641929,-501.66875593,0.00014173,2]
[420333600,1775982641939,-500.0,0.00014173,2]
[420333601,1775982641947,-500.0,0.00014173,2]
[420333602,1775982641962,-500.0,0.00014173,2]
[420333603,1775982641972,-500.0,0.00014173,2]
[420333604,1775982641981,-500.0,0.00014173,2]
[420333605,1775982641991,-500.0,0.00014173,2]
[420333606,1775982642007,-181.08010149,0.00014183,2]
[420333607,1775982642019,-1129.61855083,0.00014209,2]
[420333608,1775982642028,-166.66,0.00014247,2]
[420333609,1775982642039,-150.0,0.00014247,2]
[420333610,1775982642057,-150.0,0.00014247,2]
[420333611,1775982642068,-150.0,0.00014247,2]
[420333612,1775982642078,-500.0,0.0001431,2]
[420333613,1775982642095,-2000.0,0.00014311,2]
[420333614,1775982642104,-200.0,0.00014376,2]
[420333615,1775982642115,-1377.42282659,0.00014376,2]
[420333616,1775982642125,-636.48,0.00014384,2]
[420333617,1775982642142,-166.66,0.00014384,2]
[420333618,1775982642151,-150.0,0.00014384,2]
[420333619,1775982642166,-444.92426112,0.0001439,2]
[420333620,1775982642176,-698.68368845,0.000144,4]
[420333621,1775982642188,-273.978909,0.000144,2]
[420333622,1775982642197,-150.0,0.000144,2]
[420333623,1775982642212,-150.0,0.000144,2]
[420333624,1775982642224,-150.0,0.000144,2]
[420333625,1775982642233,-150.0,0.000144,2]
[420333626,1775982642242,-150.0,0.000144,2]
[420333627,1775982642261,-150.0,0.000144,2]
[420333628,1775982642270,-150.0,0.000144,2]
[420333630,1775982642281,-150.0,0.000144,2]
[420333632,1775982642297,-150.0,0.000144,2]
[420333633,1775982642306,-150.0,0.000144,2]
[420333634,1775982642315,-198.18410946,0.000144,2]
[420333635,1775982642324,-150.0,0.000144,2]
[420333636,1775982642340,-150.0,0.000144,2]
[420333638,1775982642349,-160.019041,0.000144,2]
[420333640,1775982642359,-160.019041,0.000144,2]
[420333641,1775982642379,-160.019041,0.000144,2]
[420333642,1775982642389,-160.019045,0.000144,2]
[420333643,1775982642402,-353.431536,0.000144,2]
[420333644,1775982642413,-353.431536,0.000144,2]
[420333645,1775982642424,-353.431536,0.000144,2]
[420333646,1775982642434,-353.431531,0.000144,2]
[420333647,1775982642450,-192.100178,0.00014427,2]
[420333648,1775982642466,-160.0,0.00014427,7]
[420333649,1775982642481,-167.593234,0.00014427,7]
[420333650,1775982642508,-175.186468,0.00014427,7]
[420333651,1775982642550,-321.279607,0.00014427,2]
[420333652,1775982642559,-350.0,0.00014469,2]
[420333653,1775982642603,-2000.0,0.00014511,2]
[420333654,1775982642641,-500.0,0.00014521,2]
[420333655,1775982642658,-350.0,0.0001453,2]
[420333656,1775982642685,-150.0,0.0001456,2]
[420333657,1775982642702,-350.0,0.00014572,2]
[420333658,1775982642726,-150.0,0.000146,2]
[420333659,1775982642742,-150.0,0.00014629,2]
[420333660,1775982642758,-700.0,0.00014647,2]
[420333661,1775982642776,-195.11407025,0.00014658,2]
[420333662,1775982642788,-185.25264132,0.00014682,5]
[420333663,1775982642811,-403.827834,0.000147,7]
[420333664,1775982642828,-372.684344,0.000147,2]
[420333665,1775982642837,-2000.0,0.00014711,2]
[420333666,1775982642860,-165.38990849,0.00014719,2]
[420333667,1775982642876,-150.0,0.0001472,2]
[420333668,1775982642889,-150.0,0.0001472,2]
[420333669,1775982642902,-501.39606291,0.00014721,2]
[420333670,1775982642921,-1000.0,0.00014721,2]
[420333671,1775982642932,-1000.0,0.00014721,2]
[420333672,1775982642944,-1000.0,0.00014721,2]
[420333673,1775982642970,-1000.0,0.00014721,2]
[420333674,1775982642988,-1000.0,0.00014721,2]
[420333675,1775982643003,-1000.0,0.00014721,2]
[420333676,1775982643012,-1000.0,0.00014721,2]
[420333677,1775982643022,-1000.0,0.00014721,2]
[420333678,1775982643039,-1000.0,0.00014721,2]
[420333679,1775982643049,-500.52772067,0.00014721,2]
[420333680,1775982643059,-1000.0,0.00014721,2]
[420333681,1775982643400,-1002.08828386,0.00014721,2]
[420333682,1775982643415,-1000.0,0.00014721,2]
[420333683,1775982643426,-1000.0,0.00014721,2]
[420333684,1775982643438,-1000.0,0.00014721,2]
[420333685,1775982643451,-1000.0,0.00014721,2]
[420333686,1775982643462,-500.0,0.00014721,2]
[420333687,1775982643499,-1000.0,0.00014721,2]
[420333688,1775982643514,-1000.0,0.00014721,2]
[420333689,1775982643538,-1000.0,0.00014721,2]
[420333690,1775982643558,-293.3917272,0.00014721,2]
[420333691,1775982643571,-1000.0,0.00014721,2]
[420333692,1775982643585,-1000.78390571,0.00014721,2]
[420333693,1775982643604,-974.066065,0.00014721,2]
[420333694,1775982643617,-974.066065,0.00014721,2]
[420333695,1775982643636,-974.066065,0.00014721,2]
[420333696,1775982643652,-974.066065,0.00014721,2]
[420333697,1775982643665,-187.78006525,0.00014731,2]
[420333698,1775982643702,-165.13,0.00014755,2]
[420333699,1775982643718,-350.0,0.00014763,2]
[420333700,1775982643745,-500.0,0.00014799,2]
[420333701,1775982643754,-150.0,0.000148,2]
[420333702,1775982643773,-191.0,0.000148,2]
[420333703,1775982643788,-255.0,0.00014821,2]
[420333704,1775982643797,-150.0,0.00014836,2]
[420333705,1775982643811,-150.0,0.00014857,2]
[420333706,1775982643828,-150.0,0.0001488,2]
[420333707,1775982643838,-1000.0,0.000149,2]
[420333708,1775982643847,-800.0,0.000149,5]
[420333709,1775982643871,-171.9905,0.000149,2]
[420333710,1775982643882,-2000.0,0.00014911,2]
[420333711,1775982643901,-200.0,0.00014924,2]
[420333712,1775982643925,-1428.38747117,0.00014924,2]
[420333713,1775982643938,-150.0,0.00014933,2]
[420333714,1775982643972,-150.0,0.00014933,2]
[420333715,1775982643987,-227.08731072,0.0001496,2]
[420333716,1775982644016,-230.49940763,0.00014963,2]
[420333717,1775982644035,-286.89006514,0.00014967,2]
[420333718,1775982644055,-500.0,0.00014967,2]
[420333719,1775982644086,-500.0,0.00014967,2]
[420333720,1775982644103,-500.0,0.00014973,2]
[420333721,1775982644118,-500.0,0.00014973,2]
[420333722,1775982644141,-422.41408675,0.00014973,2]
[420333723,1775982644151,-500.0,0.00014973,2]
[420333724,1775982644166,-628.58131968,0.00014973,2]
[420333725,1775982644186,-231.639901,0.0001498,2]
[420333726,1775982644196,-350.0,0.00014981,3]
[420333727,1775982644210,-3211.0,0.00014998,5]
[420333728,1775982644229,-974.066065,0.00014998,2]
[420333729,1775982644239,-974.066065,0.00014998,2]
[420333730,1775982644251,-974.066065,0.00014998,2]
[420333731,1775982644262,-974.066065,0.00014998,2]
[420333732,1775982644276,-20796.93009175,0.00015,10]
[420333733,1775982644286,-155.0713,0.00015,2]
[420333734,1775982644295,-25000.0,0.00015,2]
[420333735,1775982644317,-150.0,0.00015,2]
[420333736,1775982644327,-300.0,0.00015,2]
[420333737,1775982644336,-166.2149,0.00015,2]
[420333738,1775982644345,-500.0,0.00015008,2]
[420333739,1775982644361,-338.10881201,0.00015008,2]
[420333740,1775982644373,-500.0,0.00015008,2]
[420333741,1775982644382,-1000.0,0.00015011,2]
[420333742,1775982644392,-3041.7505,0.00015011,2]
[420333743,1775982644430,-420.0,0.00015012,2]
[420333744,1775982644441,-500.0,0.00015038,2]
[420333745,1775982644453,-1128.72,0.00015038,2]
[420333746,1775982644470,-500.0,0.00015038,2]
[420333747,1775982644479,-500.0,0.00015038,2]
[420333748,1775982644492,-500.0,0.00015038,2]
[420333749,1775982644506,-150.0,0.0001504,2]
[420333750,1775982644515,-150.0,0.0001504,2]
[420333751,1775982644537,-2528.32,0.00015057,2]
[420333752,1775982644547,-761.09,0.00015057,2]
[420333753,1775982644559,-974.066065,0.00015057,2]
[420333754,1775982644568,-974.066065,0.00015057,2]
[420333755,1775982644583,-974.066065,0.00015057,2]
[420333756,1775982644599,-974.066056,0.00015057,2]
[420333757,1775982644609,-300.0,0.00015068,2]
[420333758,1775982644619,-500.0,0.00015068,2]
[420333759,1775982644630,-200.0,0.00015068,2]
[420333760,1775982644650,-1680.0,0.00015068,2]
[420333761,1775982644660,-244.15,0.00015068,2]
[420333762,1775982644671,-636.48,0.00015068,2]
[420333763,1775982644682,-571.759107,0.00015068,2]
[420333764,1775982644691,-571.759107,0.00015068,2]
[420333765,1775982644707,-571.759107,0.00015068,2]
[420333766,1775982644716,-571.759107,0.00015068,2]
[420333767,1775982644727,-571.759107,0.00015068,2]
[420333768,1775982644740,-571.759107,0.00015068,2]
[420333769,1775982644750,-571.759107,0.00015068,2]
[420333770,1775982644760,-571.759107,0.00015068,2]
[420333771,1775982644771,-571.759107,0.00015068,2]
[420333772,1775982644784,-571.759107,0.00015068,2]
[420333773,1775982644794,-571.759107,0.00015068,2]
[420333774,1775982644803,-571.759107,0.00015068,2]
[420333775,1775982644812,-571.759107,0.00015068,2]
[420333776,1775982644841,-571.759107,0.00015068,2]
[420333777,1775982644852,-571.759107,0.00015068,2]
[420333778,1775982644861,-571.759107,0.00015068,2]
[420333779,1775982644879,-571.759107,0.00015068,2]
[420333780,1775982644892,-571.759107,0.00015068,2]
[420333781,1775982644901,-571.759107,0.00015068,2]
[420333782,1775982644914,-571.759104,0.00015068,2]
[420333783,1775982644943,-800.0,0.00015068,2]
[420333784,1775982644952,-2500.0,0.00015069,2]
[420333785,1775982644970,-300.0,0.00015069,2]
[420333786,1775982644981,-154.0,0.00015072,2]
[420333787,1775982644991,-150.0,0.00015086,2]
[420333788,1775982645001,-2000.0,0.00015111,2]
[420333789,1775982645023,-2000.0,0.00015175,2]